bitfinex-derivatives/quotes_SOLF0:USTF0_20250309
["timestamp","ask_amount","ask_price","bid_price","bid_amount"]
[1741544478686,47.14,126.92,126.84,0.05681044]
[1741544478687,0.05068945,126.86,126.84,0.05681044]
[1741544478986,47.14,126.92,126.84,0.05681044]
[1741544478987,47.14,126.92,126.85,52.46727451]
[1741544479190,4.3137,126.93,126.85,52.46727451]
[1741544479582,51.2969,126.97,126.87,52.46727451]
[1741544480378,0.05422549,126.93,126.91,0.05585607]
[1741544480983,7.8796,126.92,126.91,0.05585607]
[1741544481178,52.5215,126.93,126.84,260.16]
[1741544481383,52.46727451,126.9,126.8,47.16]
[1741544481578,394.61041083,126.96,126.84,52.46727451]
[1741544481783,51.1969,126.97,126.88,52.46727451]
[1741544481980,47.1,126.97,126.85,47.12]
[1741544482189,52.46727451,127.0,126.85,47.12]
[1741544482190,4.119,126.96,126.89,52.46727451]
[1741544482390,52.46727451,127.03,126.91,52.46727451]
[1741544482686,52.46727451,127.01,126.9,0.05780278]
[1741544482883,4.0472,126.97,126.89,52.46727451]
[1741544483084,47.2,126.98,126.87,7.8825]
[1741544483278,99.66727451,126.98,126.86,312.56727451]
[1741544483478,52.46727451,126.96,126.86,260.1]
[1741544483682,7.8796,126.92,126.91,0.05240495]
[1741544483883,99.74727451,126.92,126.8,359.80727451]
[1741544484088,47.28,126.92,126.82,52.46727451]
[1741544484290,4.1376,126.91,126.82,52.46727451]
[1741544484489,4.1376,126.91,126.8,307.34]
[1741544484490,56.60487451,126.91,126.8,260.06]
[1741544484887,138.64801083,126.91,126.8,260.06]
[1741544485088,0.05121203,126.87,126.84,0.05792175]
[1741544485287,47.3,126.86,126.78,52.46727451]
[1741544485689,47.3,126.86,126.75,52.46727451]
[1741544485888,52.46727451,126.85,126.74,307.42]
[1741544486087,52.46727451,126.85,126.74,260.06]
[1741544486594,0.05056165,126.81,126.74,260.06]
[1741544486790,47.32,126.8,126.69,52.46727451]
[1741544486995,47.32,126.8,126.72,52.46727451]
[1741544487388,47.32,126.8,126.69,52.46727451]
[1741544487585,52.46727451,126.79,126.67,260.12]
[1741544487790,52.52415297,126.76,126.73,0.05867957]
[1741544487993,47.3,126.75,126.67,260.12]
[1741544488794,47.24,126.79,126.67,307.36]
[1741544488990,82.04313632,126.83,126.7,52.46727451]
[1741544489196,0.05956275,126.74,126.72,0.0526799]
[1741544489588,52.46727451,126.81,126.7,52.46727451]
[1741544489804,52.46727451,126.84,126.67,260.12]
[1741544489805,7.8914,126.73,126.72,0.05255191]
[1741544490095,47.26,126.74,126.67,260.12]
[1741544490290,47.31412015,126.74,126.63,52.46727451]
[1741544490497,47.31412015,126.74,126.61,339.02128038]
[1741544490688,47.26,126.74,126.64,10.54042679]
[1741544490890,52.46727451,126.72,126.64,10.54042679]
[1741544491698,0.05990984,126.69,126.67,0.05823573]
[1741544491900,7.8945,126.68,126.67,0.05823573]
[1741544492393,7.8964,126.65,126.64,10.54042679]
[1741544492603,99.72718435,126.69,126.64,10.54042679]
[1741544492787,47.2,126.69,126.64,10.54042679]
[1741544492987,47.16,126.73,126.64,10.54042679]
[1741544493294,47.16,126.73,126.65,52.46727451]
[1741544493503,7.8928,126.71,126.65,52.46727451]
[1741544493797,0.05753071,126.7,126.6,52.46727451]
[1741544493996,47.16,126.69,126.6,52.46727451]
[1741544494396,47.16,126.69,126.59,7.8998]
[1741544494587,52.46727451,126.65,126.53,47.14]
[1741544494795,52.46727451,126.65,126.49,10.54042679]
[1741544494796,47.12,126.64,126.49,10.54042679]
[1741544494992,47.12,126.64,126.58,7.9005]
[1741544495194,0.05419419,126.61,126.59,0.02126568]
[1741544495495,47.08,126.6,126.49,10.54042679]
[1741544495796,47.08,126.62,126.51,52.46727451]
[1741544495991,47.08,126.62,126.54,52.46727451]
[1741544496196,47.08,126.62,126.53,47.04]
[1741544496493,47.08,126.62,126.54,52.46727451]
[1741544496798,47.02,126.68,126.57,52.46727451]
[1741544497187,134.51041083,126.67,126.56,260.4]
[1741544497590,82.04313632,126.67,126.56,260.4]
[1741544497793,7.8968,126.65,126.56,260.4]
[1741544497997,47.02,126.67,126.59,52.46727451]
[1741544498199,0.05578084,126.63,126.6,0.05132055]
[1741544500494,47.27578084,126.63,126.6,0.05132055]
[1741544501598,0.05578084,126.63,126.6,0.05132055]
[1741544503494,46.94,126.62,126.6,0.05132055]
[1741544503793,46.94,126.62,126.52,52.46727451]
[1741544504192,12.2637,126.61,126.52,52.46727451]
[1741544504396,20.1627,126.61,126.55,7.9022]
[1741544504598,12.2637,126.61,126.55,7.9022]
[1741544504795,0.05547872,126.59,126.52,52.46727451]
[1741544504994,0.05547872,126.59,126.55,52.46727451]
[1741544505299,12.2637,126.61,126.55,52.46727451]
[1741544505494,0.04998324,126.58,126.55,52.46727451]
[1741544505695,0.04998324,126.58,126.53,46.76]
[1741544505894,0.04998324,126.58,126.52,52.46727451]
[1741544506097,58.9037,126.61,126.5,359.56727451]
[1741544506293,0.05834642,126.56,126.53,52.46727451]
[1741544506490,0.05834642,126.56,126.5,307.1]
[1741544506491,0.05834642,126.56,126.55,52.46727451]
[1741544506692,0.05834642,126.56,126.55,60.36987451]
[1741544507090,0.05834642,126.56,126.54,46.62]
[1741544507091,0.05834642,126.56,126.51,99.04727451]
[1741544507292,0.05834642,126.56,126.5,260.46]
[1741544507699,0.05834642,126.56,126.5,247.4258]
[1741544507700,46.57834642,126.56,126.5,247.4258]
[1741544508002,0.05834642,126.56,126.5,247.4258]
[1741544508193,7.9046,126.52,126.47,330.9240252]
[1741544508398,4.3461,126.51,126.47,323.0166252]
[1741544508696,4.3461,126.51,126.47,309.9798252]
[1741544508697,4.39780272,126.51,126.47,309.9798252]
[1741544509002,4.39780272,126.51,126.47,309.9370252]
[1741544509302,7.9068,126.49,126.47,309.9370252]
[1741544509508,46.48,126.49,126.47,241.76423723]
[1741544509701,52.46727451,126.48,126.47,241.76423723]
[1741544509894,60.37427451,126.48,126.47,241.76423723]
[1741544510093,64.33427451,126.48,126.47,202.79083723]
[1741544510796,64.33427451,126.48,126.47,190.35833723]
[1741544510996,64.33427451,126.48,126.41,42.16170717]
[1741544510997,108.89454902,126.48,126.41,42.16170717]
[1741544511198,52.46727451,126.45,126.31,50.34860717]
[1741544511395,52.46727451,126.43,126.31,50.34860717]
[1741544511602,7.9651397,126.4,126.34,7.9157]
[1741544511904,46.3,126.39,126.31,42.16170717]
[1741544512605,0.05979046,126.37,126.31,42.16170717]
[1741544513304,82.10292678,126.37,126.31,42.16170717]
[1741544513503,7.9159,126.34,126.31,42.16170717]
[1741544513705,50.2096,126.33,126.31,42.16170717]
[1741544513906,3.9696,126.33,126.31,42.16170717]
[1741544514106,4.03030428,126.33,126.32,7.917]
[1741544514507,4.03030428,126.33,126.23,47.63769948]
[1741544514705,4.03030428,126.33,126.23,46.26]
[1741544515810,4.03030428,126.33,126.23,46.24]
[1741544516106,4.03030428,126.33,126.29,52.46727451]
[1741544516812,4.03030428,126.33,126.27,98.66727451]
[1741544517205,4.03030428,126.33,126.29,52.46727451]
[1741544517509,4.03030428,126.33,126.24,98.58727451]
[1741544517808,4.03030428,126.33,126.24,52.46727451]
[1741544518206,4.03030428,126.33,126.22,52.46727451]
[1741544518408,52.46727451,126.32,126.2,52.46727451]
[1741544518712,23.59119085,126.29,125.94,281.53736733]
[1741544518917,52.46727451,126.13,125.99,52.46727451]
[1741544519109,60.39827451,126.1,125.99,52.46727451]
[1741544519416,52.46727451,126.1,125.97,52.46727451]
[1741544519913,0.05958375,126.05,126.0,52.46727451]
[1741544520110,4.1185,126.12,126.03,52.46727451]
[1741544520417,4.1185,126.12,126.03,308.0]
[1741544520910,46.8,126.2,126.11,52.46727451]
[1741544521115,3.9354,126.19,126.11,52.46727451]
[1741544521309,0.05865602,126.17,126.14,0.05812805]
[1741544522111,46.68,126.16,126.14,0.05812805]
[1741544522311,99.14727451,126.16,126.04,8.1693]
[1741544522512,52.46727451,126.13,126.0,52.46727451]
[1741544522714,46.68,126.12,126.0,52.46727451]
[1741544523019,3.9354,126.11,126.06,52.46727451]
[1741544523314,52.46727451,126.23,126.09,52.46727451]
[1741544523615,0.05027444,126.1,126.02,46.88]
[1741544523911,46.86,126.13,126.05,7.9339]
[1741544524117,8.893e-05,126.07,126.06,99.64727451]
[1741544524312,4.2138,126.21,126.08,0.0600746]
[1741544524515,52.46727451,126.15,126.04,8.3589]
[1741544524715,52.46727451,126.12,126.0,52.46727451]
[1741544525014,4.2138,126.11,126.0,52.46727451]
[1741544525210,47.2,126.1,126.0,52.46727451]
[1741544525509,0.05909411,126.07,126.05,0.05990887]
[1741544525711,0.05909411,126.07,126.05,0.00385316]
[1741544525912,47.36,126.06,126.05,0.00385316]
[1741544526117,0.05909411,126.07,126.05,0.00385316]
[1741544526521,0.05909411,126.07,126.05,7.93755316]
[1741544526818,0.05909411,126.07,126.05,0.00385316]
[1741544527114,4.2138,126.11,126.05,104.11112767]
[1741544527309,4.2138,126.11,126.05,0.00385316]
[1741544527718,52.46727451,126.07,126.05,0.00385316]
[1741544527913,47.62,126.06,126.05,0.00385316]
[1741544528119,47.62,126.06,125.95,261.4]
[1741544528312,52.46727451,126.05,125.9,1.38095238]
[1741544528621,52.46727451,126.02,125.91,52.46727451]
[1741544528922,4.3521,126.01,125.91,52.46727451]
[1741544529212,4.3521,126.01,125.9,47.6]
[1741544529417,0.05095463,125.97,125.95,0.05196012]
[1741544529819,0.05095463,125.97,125.95,7.99206012]
[1741544530118,0.05095463,125.97,125.95,0.05196012]
[1741544530310,5.463e-05,125.97,125.95,0.05196012]
[1741544531614,4.3521,126.01,125.96,52.46727451]
[1741544531819,4.3521,126.01,125.98,52.46727451]
[1741544532022,52.46727451,126.14,126.0,104.93454902]
[1741544532318,4.2459,126.13,126.03,52.46727451]
[1741544532511,4.2459,126.13,126.07,7.9325]
[1741544532710,4.2459,126.13,126.05,52.46727451]
[1741544532913,0.0591456,126.11,126.09,0.055964]
[1741544533617,0.0591456,126.11,126.1,7.9308]
[1741544534219,4.2459,126.13,126.09,0.055964]
[1741544534723,261.64,126.23,126.12,52.46727451]
[1741544534920,52.46727451,126.18,126.09,0.055964]
[1741544535224,47.3,126.2,126.11,52.46727451]
[1741544535524,0.05044447,126.15,126.12,0.05848013]
[1741544536023,0.05044447,126.15,126.12,0.05462757]
[1741544536224,52.46727451,126.22,126.12,0.05462757]
[1741544536225,1.3798299,126.27,126.14,52.46727451]
[1741544536522,1.3798299,126.27,126.12,365.52190208]
[1741544536523,47.44,126.25,126.16,52.46727451]
[1741544536921,99.90727451,126.25,126.12,361.50727451]
[1741544537117,47.44,126.25,126.12,361.50727451]
[1741544537320,47.44,126.25,126.2,7.9242]
[1741544537516,8.03e-06,126.2,126.18,52.46727451]
[1741544537721,47.36,126.29,126.18,104.93454902]
[1741544537919,89.95833632,126.35,126.26,7.9202]
[1741544538128,261.6,126.37,126.27,52.46727451]
[1741544538129,47.32,126.34,126.27,52.46727451]
[1741544538822,0.05766174,126.32,126.29,0.05388977]
[1741544539020,52.46727451,126.31,126.18,47.32]
[1741544539222,52.46727451,126.29,126.18,99.78727451]
[1741544539525,52.46727451,126.25,126.14,314.06727451]
[1741544539722,47.3,126.24,126.14,314.06727451]
[1741544540225,0.05216221,126.2,126.18,0.0549779]
[1741544541326,0.05216221,126.2,126.18,52.52225241]
[1741544541515,0.05216221,126.2,126.18,60.44785241]
[1741544541722,4.3093,126.28,126.18,108.94952692]
[1741544541925,4.3093,126.28,126.24,52.46727451]
[1741544542122,82.04313632,126.35,126.27,52.46727451]
[1741544542316,7.9139,126.37,126.27,52.46727451]
[1741544542525,82.04313632,126.38,126.29,52.46727451]
[1741544542729,0.056948,126.35,126.32,0.05538194]
[1741544543721,47.456948,126.35,126.32,0.05538194]
[1741544544327,52.46727451,126.34,126.24,52.46727451]
[1741544544523,52.46727451,126.34,126.22,261.56]
[1741544544725,52.46727451,126.34,126.22,269.4831]
[1741544544921,52.46727451,126.31,126.19,47.34]
[1741544545130,47.32,126.3,126.16,265.4044]
[1741544545320,7.9214,126.26,126.16,265.4044]
[1741544545525,0.05422096,126.25,126.16,261.46]
[1741544545920,99.72727451,126.26,126.12,99.72727451]
[1741544546329,47.26,126.26,126.12,99.72727451]
[1741544546631,52.46727451,126.24,126.12,99.72727451]
[1741544546832,0.04990899,126.2,126.18,0.05710851]
[1741544547332,7.9251,126.19,126.18,0.05710851]
[1741544547628,4.11370899,126.2,126.06,244.46727451]
[1741544547826,4.11370899,126.2,126.15,7.9271]
[1741544548025,4.0638,126.2,126.14,52.46727451]
[1741544548529,47.58,126.19,126.08,60.77697451]
[1741544548722,0.05459823,126.18,126.16,0.05333664]
[1741544548929,47.56,126.25,126.17,52.46727451]
[1741544549233,0.05970167,126.18,126.17,52.46727451]
[1741544549528,0.059808,126.19,126.17,52.46727451]
[1741544549735,0.059808,126.19,126.16,0.05162485]
[1741544549933,3.9402,126.24,126.15,52.46727451]
[1741544550226,0.05450071,126.19,126.16,0.05574901]
[1741544550433,0.05450071,126.19,126.12,313.92727451]
[1741544550733,0.05450071,126.19,126.16,0.05170652]
[1741544551331,0.05450071,126.19,126.17,52.46727451]
[1741544551526,41.16380186,126.31,126.18,52.46727451]
[1741544551733,41.16380186,126.31,126.23,52.46727451]
[1741544551932,41.16380186,126.31,126.2,52.46727451]
[1741544552131,7.921,126.26,126.19,4.0916]
[1741544552331,52.46727451,126.29,126.19,4.0916]
[1741544552727,0.06029894,126.25,126.23,0.06089658]
[1741544554035,48.32,126.24,126.0,84.27787451]
[1741544554235,48.32,126.24,126.1,8.2175]
[1741544554438,134.51041083,126.23,126.1,8.2175]
[1741544554736,7.9245,126.21,126.15,7.9275]
[1741544554930,134.51041083,126.23,126.1,8.2175]
[1741544555130,82.04313632,126.23,126.1,8.2175]
[1741544555325,0.05312602,126.19,126.16,0.06039511]
[1741544555530,48.22,126.18,126.16,0.06039511]
[1741544555934,0.05312602,126.19,126.16,0.06039511]
[1741544556728,82.04313632,126.28,126.16,104.54766962]
[1741544556935,82.04313632,126.28,126.2,52.46727451]
[1741544557233,41.16380186,126.27,126.13,48.18]
[1741544557431,7.9238,126.22,126.13,48.18]
[1741544557835,7.301e-05,126.19,126.18,52.46727451]
[1741544558025,7.301e-05,126.19,126.16,0.04997241]
[1741544558231,48.18,126.26,126.15,52.46727451]
[1741544558432,7.9215,126.25,126.19,7.9251]
[1741544558641,48.18,126.26,126.15,52.46727451]
[1741544558939,48.18,126.26,126.18,52.46727451]
[1741544559138,0.05911629,126.22,126.19,0.05818529]
[1741544559340,48.09911629,126.22,126.19,0.05818529]
[1741544560032,41.16380186,126.27,126.19,0.05818529]
[1741544560232,41.16380186,126.27,126.2,52.46727451]
[1741544560438,89.32380186,126.27,126.18,56.61107451]
[1741544561037,89.32380186,126.27,126.19,48.18]
[1741544561239,0.05310474,126.24,126.21,0.05685656]
[1741544564439,0.05310474,126.24,126.23,7.9226]
[1741544565039,0.05310474,126.24,126.21,0.05685656]
[1741544566043,7.9233,126.22,126.21,0.05685656]
[1741544566240,47.54,126.22,126.15,4.0212]
[1741544566437,47.54,126.22,126.11,261.44]
[1741544566638,100.00727451,126.22,126.09,64.67867451]
[1741544567144,7.9263,126.18,126.09,64.67867451]
[1741544567343,47.42,126.17,126.09,64.67867451]
[1741544567544,0.05594666,126.15,126.12,0.05456593]
[1741544567739,0.05594666,126.15,126.12,52.52184044]
[1741544567938,47.34,126.2,126.12,52.52184044]
[1741544568445,47.34,126.2,126.12,52.46727451]
[1741544568641,7.926,126.18,126.13,7.9285]
[1741544568841,47.34,126.2,126.09,64.67867451]
[1741544569147,0.05379958,126.17,126.14,0.05741063]
[1741544569344,55.1275,126.16,126.14,0.05741063]
[1741544569550,47.2,126.16,126.14,0.05741063]
[1741544570843,47.2,126.16,126.14,7.98521063]
[1741544571135,0.05379958,126.17,126.14,0.05741063]
[1741544573746,0.05379958,126.17,126.14,7.98531063]
[1741544573942,82.04313632,126.24,126.15,52.46727451]
[1741544574143,7.9244,126.21,126.16,7.9267]
[1741544574348,7.9244,126.21,126.13,261.56]
[1741544574349,99.06727451,126.24,126.13,261.56]
[1741544574648,7.9235,126.22,126.13,261.56]
[1741544574845,46.6,126.24,126.14,52.46727451]
[1741544575247,0.05608576,126.2,126.18,0.05918391]
[1741544575547,46.56,126.19,126.18,0.05918391]
[1741544575749,46.56,126.19,126.14,7.9281]
[1741544575949,46.56,126.19,126.13,261.56]
[1741544577051,0.05136087,126.17,126.15,0.05374466]
[1741544577452,46.26,126.22,126.15,0.05374466]
[1741544577646,4.333,126.25,126.13,307.84]
[1741544577851,7.9232,126.23,126.18,7.9253]
[1741544578050,46.3,126.24,126.13,307.84]
[1741544578454,46.3,126.24,126.15,52.46727451]
[1741544578646,0.0577372,126.2,126.18,52.46727451]
[1741544578851,46.3,126.24,126.18,52.46727451]
[1741544579149,46.18,126.27,126.18,56.44127451]
[1741544579546,7.9204,126.27,126.22,7.9229]
[1741544579759,41.16380186,126.31,126.24,52.46727451]
[1741544580049,41.16380186,126.31,126.25,4.1328]
[1741544580548,46.64,126.3,126.22,261.56]
[1741544580853,46.64,126.3,126.23,52.46727451]
[1741544581056,41.16380186,126.31,126.26,52.46727451]
[1741544581554,41.16380186,126.31,126.27,3.974]
[1741544581742,87.78380186,126.36,126.27,3.974]
[1741544581944,41.16380186,126.36,126.29,52.46727451]
[1741544582143,28.10660186,126.36,126.35,7.9151]
[1741544582355,83.38609964,126.37,126.35,52.46727451]
[1741544582551,83.43635076,126.37,126.35,52.46727451]
[1741544582752,27.78611125,126.37,126.35,52.46727451]
[1741544583250,27.78611125,126.37,126.34,0.05781523]
[1741544583642,46.5,126.36,126.26,261.44]
[1741544583847,46.6134,126.36,126.2,307.92]
[1741544584153,52.46727451,126.35,126.2,307.92]
[1741544584353,46.6134,126.36,126.2,307.92]
[1741544584550,134.51041083,126.35,126.2,307.92]
[1741544584750,134.51041083,126.35,126.21,52.46727451]
[1741544585053,0.05595169,126.31,126.28,0.05544472]
[1741544586251,0.05595169,126.31,126.28,4.24134472]
[1741544586444,265.4397,126.41,126.3,52.46727451]
[1741544586648,50.6258,126.39,126.3,52.46727451]
[1741544586943,50.5858,126.39,126.33,7.9159]
[1741544587346,4.3258,126.39,126.3,52.46727451]
[1741544587550,136.11403632,126.42,126.33,52.46727451]
[1741544587752,0.06024253,126.36,126.33,52.52313558]
[1741544588050,46.16,126.42,126.37,7.9138]
[1741544588251,46.16,126.42,126.36,52.46727451]
[1741544588652,46.16,126.42,126.36,60.38167451]
[1741544588849,46.16,126.42,126.36,52.46727451]
[1741544589051,0.05563318,126.4,126.38,0.05534448]
[1741544589248,36.96196476,126.53,126.39,52.46727451]
[1741544589553,142.66521083,126.52,126.42,52.46727451]
[1741544589755,8.1548,126.52,126.44,52.46727451]
[1741544590052,36.96196476,126.53,126.47,52.46727451]
[1741544590449,0.05090072,126.51,126.49,0.0504538]
[1741544592155,36.96196476,126.53,126.5,52.46727451]
[1741544592554,36.96196476,126.53,126.49,0.0504538]
[1741544592760,45.92,126.57,126.49,0.0504538]
[1741544592956,8.1548,126.59,126.51,7.905]
[1741544593255,0.05003836,126.56,126.54,0.05335742]
[1741544594459,45.74,126.63,126.54,45.79335742]
[1741544594760,98.20727451,126.63,126.53,52.46727451]
[1741544594955,45.74,126.63,126.53,52.46727451]
[1741544595658,0.0580285,126.59,126.57,0.05444573]
[1741544596755,7.9007,126.58,126.57,0.05444573]
[1741544597156,7.9007,126.58,126.51,49.7969]
[1741544597157,3.96,126.58,126.48,52.46727451]
[1741544597366,7.9049,126.52,126.45,7.9087]
[1741544597761,45.4,126.54,126.43,53.5008]
[1741544598162,45.4,126.54,126.47,313.64727451]
[1741544598459,0.05503579,126.52,126.49,0.05596422]
[1741544599669,7.9057,126.5,126.49,0.05596422]
[1741544600365,52.9257,126.5,126.49,0.05596422]
[1741544600766,52.9257,126.5,126.43,8.1008]
[1741544601062,8.2162,126.57,126.45,52.46727451]
[1741544601263,44.96,126.56,126.45,52.46727451]
[1741544601865,0.06019838,126.52,126.49,0.0560911]
[1741544602064,7.9057,126.5,126.49,0.0560911]
[1741544604267,44.98019838,126.52,126.49,0.0560911]
[1741544605070,52.88509838,126.52,126.49,0.0560911]
[1741544605473,0.06019838,126.52,126.49,0.0560911]
[1741544605673,0.06019838,126.52,126.49,52.52336561]
[1741544606073,0.06019838,126.52,126.49,0.0560911]
[1741544606377,7.96489838,126.52,126.49,0.0560911]
[1741544606575,0.06019838,126.52,126.49,52.52336561]
[1741544606978,0.06019838,126.52,126.49,60.42936561]
[1741544607274,0.06019838,126.52,126.49,52.52336561]
[1741544607776,4.1262,126.59,126.49,52.52336561]
[1741544607777,7.9009,126.58,126.49,313.42336561]
[1741544607973,7.9009,126.58,126.52,52.46727451]
[1741544608172,4.2119,126.61,126.52,52.46727451]
[1741544608775,7.9016,126.57,126.52,60.37167451]
[1741544608976,7.9016,126.57,126.55,0.0499134]
[1741544609377,0.05407199,126.58,126.55,0.0499134]
[1741544609782,44.1,126.57,126.55,0.0499134]
[1741544609974,7.902,126.56,126.55,0.0499134]
[1741544610175,44.1,126.57,126.5,52.46727451]
[1741544610375,44.1,126.57,126.54,7.9027]
[1741544610576,7.9002,126.59,126.5,52.46727451]
[1741544610577,44.06,126.6,126.5,52.46727451]
[1741544610779,44.06,126.6,126.5,96.52727451]
[1741544611084,96.52727451,126.6,126.49,260.9]
[1741544611381,0.0592109,126.56,126.55,7.9026]
[1741544611578,0.0592109,126.56,126.54,0.051553]
[1741544611784,44.06,126.6,126.54,52.51882751]
[1741544611979,82.04313632,126.69,126.56,52.46727451]
[1741544612275,52.46727451,126.67,126.52,48.3212]
[1741544612473,7.9,126.6,126.55,7.9024]
[1741544612673,44.14,126.61,126.54,52.46727451]
[1741544612878,44.12,126.64,126.57,52.46727451]
[1741544613072,52.46727451,126.67,126.57,96.58727451]
[1741544613073,7.8963,126.66,126.57,96.58727451]
[1741544613377,0.05665073,126.62,126.59,0.05234104]
[1741544615378,0.05665073,126.62,126.52,56.64847451]
[1741544615577,56.77167451,126.63,126.52,56.64847451]
[1741544615777,7.9001,126.59,126.52,64.55257451]
[1741544615976,4.3044,126.63,126.52,56.64847451]
[1741544616683,0.0576036,126.59,126.56,0.05990069]
[1741544617081,3.9234,126.68,126.58,52.46727451]
[1741544617279,3.9234,126.68,126.61,52.46727451]
[1741544617584,3.9234,126.68,126.59,52.46727451]
[1741544618384,0.05510541,126.65,126.62,52.52432875]
[1741544618779,0.05510541,126.65,126.64,52.46727451]
[1741544619277,0.05510541,126.65,126.62,52.52432875]
[1741544619982,0.05510541,126.65,126.62,0.05705424]
[1741544620278,7.8976,126.63,126.62,0.05705424]
[1741544620482,43.6,126.64,126.56,43.64]
[1741544620685,43.6,126.64,126.53,43.6]
[1741544621484,0.05698152,126.6,126.58,0.06028409]
[1741544622183,7.9002,126.59,126.58,0.06028409]
[1741544622384,0.05698152,126.6,126.58,0.06028409]
[1741544623682,7.9001,126.59,126.58,0.06028409]
[1741544624282,7.904,126.53,126.51,260.7]
[1741544624585,43.3,126.56,126.46,52.46727451]
[1741544624881,4.1591,126.59,126.44,304.0]
[1741544624882,4.1591,126.59,126.49,52.46727451]
[1741544625087,4.1591,126.59,126.52,52.46727451]
[1741544625288,7.9036,126.54,126.48,60.37387451]
[1741544625584,0.05211071,126.55,126.53,0.05292714]
[1741544625985,43.46,126.56,126.48,52.46727451]
[1741544626179,43.46,126.56,126.53,0.06020515]
[1741544626382,0.05224359,126.55,126.53,0.06020515]
[1741544628694,0.05224359,126.55,126.45,56.56287451]
[1741544628891,0.05224359,126.55,126.48,52.46727451]
[1741544629090,95.76727451,126.58,126.48,52.46727451]
[1741544629490,95.76727451,126.58,126.45,56.56287451]
[1741544629791,0.05519998,126.53,126.5,0.05525894]
[1741544629987,43.21519998,126.53,126.5,0.05525894]
[1741544630181,43.21519998,126.53,126.45,56.56287451]
[1741544630382,43.21519998,126.53,126.5,0.05239471]
[1741544630587,4.1591,126.59,126.5,0.05239471]
[1741544630789,0.05455242,126.53,126.51,52.46727451]
[1741544630993,4.1591,126.59,126.51,52.46727451]
[1741544631193,4.1591,126.59,126.52,4.1029]
[1741544631386,4.1591,126.59,126.52,56.57017451]
[1741544631589,12.0593,126.59,126.53,7.9035]
[1741544631785,43.08,126.6,126.52,56.57017451]
[1741544632190,0.05335727,126.57,126.55,0.0576119]
[1741544632586,7.902,126.56,126.55,0.0576119]
[1741544632990,50.842,126.56,126.55,0.0576119]
[1741544633695,7.904,126.53,126.48,60.37417451]
[1741544633894,42.94,126.56,126.48,52.46727451]
[1741544634087,42.94,126.59,126.48,52.46727451]
[1741544634287,8.0004,126.64,126.51,52.46727451]
[1741544634487,42.9,126.63,126.54,52.46727451]
[1741544634889,0.05789361,126.6,126.57,52.52415118]
[1741544635087,42.88,126.66,126.57,52.46727451]
[1741544635498,42.88,126.66,126.6,7.8991]
[1741544635697,31.52043345,126.68,126.57,52.46727451]
[1741544635897,42.78,126.67,126.57,52.46727451]
[1741544636288,0.05512912,126.63,126.61,0.05725862]
[1741544636487,42.81512912,126.63,126.61,0.05725862]
[1741544637194,50.71272912,126.63,126.61,0.05725862]
[1741544637496,42.81512912,126.63,126.61,0.05725862]
[1741544638000,0.05512912,126.63,126.61,0.05725862]
[1741544639198,0.05512912,126.63,126.62,7.8982]
[1741544639398,42.46,126.68,126.61,0.05725862]
[1741544639990,4.2804,126.69,126.61,0.05725862]
[1741544640192,4.1223,126.7,126.63,52.46727451]
[1741544640595,0.05951384,126.68,126.65,0.05300172]
[1741544640790,42.49951384,126.68,126.65,0.05300172]
[1741544641698,7.8951,126.67,126.65,0.05300172]
[1741544641896,0.05951384,126.68,126.65,0.05300172]
[1741544642090,82.04313632,126.74,126.65,52.52027623]
[1741544642295,7.8903,126.75,126.68,52.46727451]
[1741544642495,156.45725758,126.77,126.65,94.84727451]
[1741544642893,7.8921,126.72,126.65,94.84727451]
[1741544643103,42.32,126.71,126.65,52.46727451]
[1741544643299,42.32,126.71,126.67,0.06031575]
[1741544643300,7.8944,126.69,126.67,0.06031575]
[1741544643801,0.05256276,126.7,126.67,7.95521575]
[1741544644205,0.05256276,126.7,126.67,0.06031575]
[1741544644399,7.8945,126.68,126.67,0.06031575]
[1741544645398,7.8945,126.68,126.57,52.46727451]
[1741544645399,3.94,126.68,126.57,52.46727451]
[1741544645600,4.205,126.69,126.55,264.6201]
[1741544645601,138.81941083,126.67,126.55,268.5424]
[1741544645904,52.46727451,126.64,126.52,4.1558]
[1741544646102,52.46727451,126.64,126.51,96.10871888]
[1741544646103,52.46727451,126.61,126.51,43.64144437]
[1741544646295,7.9033,126.54,126.51,43.64144437]